[Event "European Corporate Championship 2022"]
[Site "Rotterdam"]
[Date "2022.06.19"]
[Round "7.6"]
[White "Celinski, Kamil"]
[Black "Jap Tjoen San, Linda"]
[Result "1-0"]
[ECO "A36"]
[WhiteElo "1907"]
[BlackElo "2045"]
[Annotator "NA RC"]
[PlyCount "102"]
[EventDate "2022.06.18"]
[EventType "team-tourn"]
[EventCountry "NED"]
[SourceTitle "playchess.com"]
[Source "ChessBase"]
[SourceQuality "1"]
[TimeControl "900+5"]

1. c4 {[%emt 0:00:07]} g6 {[%emt 0:00:28]} 2. e4 {[%emt 0:00:20]} Bg7 {[%emt 0:00:14]} 3. g3 {[%emt 0:00:18]} c5 {[%emt 0:00:08]} 4. Bg2 {[%emt 0:00:10]} Nc6 {[%emt 0:00:06]} 5. Nc3 {[%emt 0:00:23]} d6 {[%emt 0:00:56]} 6. Nge2 {[%emt 0:00:03]} f5 {[%emt 0:00:34]} 7. O-O {[%emt 0:00:16]} Nf6 {[%emt 0:02:19]} 8. d4 {[%emt 0:00:24]} cxd4 {[%emt 0:00:16]} 9. Nxd4 {[%emt 0:00:04]} Nxd4 {[%emt 0:00:02]} 10. Qxd4 {[%emt 0:00:06]} O-O {[%emt 0:01:26]} 11. Qd3 {[%emt 0:00:20]} fxe4 {[%emt 0:00:23]} 12. Nxe4 {[%emt 0:00:12]} Nxe4 {[%emt 0:00:30]} 13. Bxe4 {[%emt 0:00:06]} Qc7 {[%emt 0:00:16]} 14. Qe2 {[%emt 0:01:06]} Kh8 {[%emt 0:00:39]} 15. Be3 {[%emt 0:00:36]} Bd7 {[%emt 0:00:40]} 16. Rfd1 {[%emt 0:00:56]} Rac8 {[%emt 0:00:13]} 17. Rac1 {[%emt 0:00:12]} b6 {[%emt 0:00:10]} 18. b3 {[%emt 0:00:21]} Bf5 {[%emt 0:00:26]} 19. Bg2 {[%emt 0:00:18]} Bd7 {[%emt 0:00:36]} 20. Bd4 {[%emt 0:00:48]} e5 {[%emt 0:00:10]} 21. Bc3 {[%emt 0:00:10]} a5 {[%emt 0:00:07]} 22. Qd2 {[%emt 0:00:29]} Rf6 {[%emt 0:00:03]} 23. Bxe5 {[%emt 0:00:50]} dxe5 {[%emt 0:01:00]} 24. Qxd7 {[%emt 0:00:01]} Qc5 {[%emt 0:00:01]} 25. Rc2 {[%emt 0:00:35]} Rcf8 {[%emt 0:00:06]} 26. Rf1 {[%emt 0:00:18]} Bh6 {[%emt 0:00:05]} 27. Qd5 {[%emt 0:00:19]} Rxf2 {[%emt 0:00:21]} 28. Qxc5 {[%emt 0:07:37]} Rxf1+ {[%emt 0:00:09]} 29. Bxf1 {[%emt 0:00:00]} bxc5 {[%emt 0:00:02]} 30. Re2 {[%emt 0:00:00]} Re8 {[%emt 0:00:01]} 31. Bg2 {[%emt 0:00:00]} Kg7 {[%emt 0:00:01]} 32. Bd5 {[%emt 0:00:00]} Kf6 {[%emt 0:05:17]} 33. Rf2+ {[%emt 0:00:00]} Kg5 {[%emt 0:00:00]} 34. h4+ {[%emt 0:00:00]} Kg4 {[%emt 0:00:00]} 35. Kg2 {[%emt 0:00:00]} e4 {[%emt 0:00:00]} 36. Rf7 {[%emt 0:00:00]} Be3 {[%emt 0:00:00]} 37. Bc6 {[%emt 0:00:00]} Rd8 {[%emt 0:00:00]} 38. Bd7+ {[%emt 0:00:00]} Rxd7 {[%emt 0:00:00]} 39. Rxd7 {[%emt 0:00:00]} h6 {[%emt 0:00:00]} 40. Rd6 {[%emt 0:00:00]} Kf5 {[%emt 0:00:00]} 41. Rd5+ {[%emt 0:00:00]} Ke6 {[%emt 0:00:00]} 42. Kf1 {[%emt 0:00:00]} Bd4 {[%emt 0:00:00]} 43. Ke2 {[%emt 0:00:00]} Bg1 {[%emt 0:00:00]} 44. h5 {[%emt 0:00:00]} g5 {[%emt 0:00:00]} 45. a3 {[%emt 0:00:19]} Bh2 {[%emt 0:00:00]} 46. Rxc5 {[%emt 0:00:23]} Bxg3 {[%emt 0:00:00]} 47. Ke3 {[%emt 0:00:04]} Bd6 {[%emt 0:00:00]} 48. Rxa5 {[%emt 0:00:05]} g4 {[%emt 0:00:00]} 49. Kxe4 {[%emt 0:00:08]} Kf6 {[%emt 0:00:10]} 50. Ra6 {[%emt 0:00:04]} Ke7 {[%emt 0:00:07]} 51. Rxd6 {[%emt 0:00:05]} Kxd6 {[%emt 0:00:02]} 1-0

[Event "European Corporate Championship 2022"]
[Site "Rotterdam"]
[Date "2022.06.19"]
[Round "7.7"]
[White "Hol, Camile"]
[Black "Wisniewski, Jacek"]
[Result "1-0"]
[ECO "C55"]
[WhiteElo "2000"]
[BlackElo "1850"]
[Annotator "NA RC"]
[PlyCount "55"]
[EventDate "2022.06.18"]
[EventType "team-tourn"]
[EventCountry "NED"]
[SourceTitle "playchess.com"]
[Source "ChessBase"]
[SourceQuality "1"]
[TimeControl "900+5"]

1. e4 {[%emt 0:00:02]} e5 {[%emt 0:00:08]} 2. Nf3 {[%emt 0:00:06]} Nc6 {[%emt 0:00:02]} 3. Bc4 {[%emt 0:00:17]} Nf6 {[%emt 0:00:07]} 4. d3 {[%emt 0:00:06]} h6 {[%emt 0:00:06]} 5. c3 {[%emt 0:00:09]} g6 {[%emt 0:00:36]} 6. O-O {[%emt 0:00:37]} Bg7 {[%emt 0:00:15]} 7. Re1 {[%emt 0:00:34]} O-O {[%emt 0:00:19]} 8. Nbd2 {[%emt 0:01:01]} a6 {[%emt 0:02:44]} 9. a4 {[%emt 0:00:22]} d5 {[%emt 0:00:15]} 10. exd5 {[%emt 0:00:41]} Nxd5 {[%emt 0:00:03]} 11. Nf1 {[%emt 0:00:46]} Kh7 {[%emt 0:00:30]} 12. Ne3 {[%emt 0:01:02]} Nb6 {[%emt 0:01:08]} 13. Bb3 {[%emt 0:00:29]} f5 {[%emt 0:00:16]} 14. a5 {[%emt 0:00:32]} Nd7 {[%emt 0:00:08]} 15. Nc4 {[%emt 0:00:45]} Nc5 {[%emt 0:00:55]} 16. Ncxe5 {[%emt 0:01:42]} Nxe5 {[%emt 0:00:57]} 17. Nxe5 {[%emt 0:00:09]} Nxb3 {[%emt 0:00:51]} 18. Qxb3 {[%emt 0:00:21]} Re8 {[%emt 0:00:35]} 19. Qf7 {[%emt 0:00:52]} Re6 {[%emt 0:01:17]} 20. d4 {[%emt 0:01:08]} Qd6 {[%emt 0:01:45]} 21. Bf4 {[%emt 0:00:28]} Re7 {[%emt 0:00:39]} 22. Qb3 {[%emt 0:00:30]} c5 {[%emt 0:00:52]} 23. Nd3 {[%emt 0:00:21]} Qd8 {[%emt 0:01:43]} 24. Rxe7 {[%emt 0:00:43]} Qxe7 {[%emt 0:00:07]} 25. Re1 {[%emt 0:00:02]} Qd8 {[%emt 0:00:43]} 26. Nxc5 {[%emt 0:00:09]} Qxa5 {[%emt 0:00:05]} 27. Qf7 {[%emt 0:00:09]} b6 {[%emt 0:00:07]} 28. Be5 {[%emt 0:00:08]} 1-0

[Event "European Corporate Championship 2022"]
[Site "Rotterdam"]
[Date "2022.06.19"]
[Round "7.9"]
[White "Haast, Mark"]
[Black "Nijboer, Friso"]
[Result "1/2-1/2"]
[ECO "A10"]
[WhiteElo "2414"]
[BlackElo "2464"]
[Annotator "TA"]
[PlyCount "66"]
[EventDate "2022.06.18"]
[EventType "team-tourn"]
[EventCountry "NED"]
[SourceTitle "playchess.com"]
[Source "ChessBase"]
[SourceQuality "1"]
[TimeControl "900+5"]

{[%evp 15,66,14,7,0,6,13,-2,-28,-29,-45,-43,-49,0,0,0,0,0,0,21,24,41,35,45,3,12,0,72,72,106,46,106,5,14,16,50,34,75,50,61,37,45,39,54,0,0,-168,0,0,-23,-188,0,0,406]} 1. e4 {[%emt 0:00:02]} c5 {[%emt 0:00:02]} 2. c4 {[%emt 0:00:02]} Nc6 {[%emt 0:00:09]} 3. Nc3 {[%emt 0:00:02]} g6 {[%emt 0:00:25]} 4. g3 {[%emt 0:00:02]} Bg7 {[%emt 0:00:05]} 5. Bg2 {[%emt 0:00:01]} d6 {[%emt 0:00:09]} 6. Nge2 {[%emt 0:00:05]} f5 {[%emt 0:01:37]} 7. d3 {[%emt 0:00:22]} Nf6 {[%emt 0:00:03]} 8. O-O {[%emt 0:00:18]} O-O {[%emt 0:00:02]} 9. h3 {[%emt 0:00:40] A10: English Opening: Unusual Replies for Black.} fxe4 {[%emt 0:03:01]} 10. dxe4 {[%emt 0:00:09]} e5 {[%emt 0:00:01]} 11. Nd5 {[%emt 0:00:44]} Nxd5 {[%emt 0:01:01]} 12. cxd5 {[%emt 0:00:30]} Nd4 {[%emt 0:00:02]} 13. Nxd4 {[%emt 0:00:03]} cxd4 {[%emt 0:00:01] [#]} (13... exd4 $15 {might be stronger.} 14. Re1 b5) 14. Qb3 $146 {[%emt 0:00:27]} ({Predecessor:} 14. Bd2 Bd7 15. Qb3 b5 16. Rac1 a5 17. a3 Qb6 18. Kh2 Rf7 19. f3 Raf8 20. h4 {1-0 (34) Pribyl,J (2420)-Grafl,F (2351) Germany 2003}) 14... b6 {[%emt 0:00:30]} 15. Bd2 {[%emt 0:00:36]} Ba6 {[%emt 0:01:18]} 16. Rfc1 {[%emt 0:00:02]} Qf6 {[%emt 0:00:01]} 17. f3 {[%emt 0:01:51] Active counter play!} Be2 {[%emt 0:00:16]} 18. Rc6 {[%emt 0:00:36]} Rad8 {[%emt 0:02:43]} (18... Bxf3 $2 19. Rf1 $18) 19. Qa3 {[%emt 0:01:36]} (19. Re1 {feels hotter.} d3 20. Rxe2 dxe2 21. Kf2) 19... Rf7 {[%emt 0:00:14][%cal Og7h6]} (19... Bxf3 $2 20. Rf1 $18) 20. Rac1 {[%emt 0:01:45]} h6 {[%emt 0:00:11]} (20... Bxf3 $2 21. Rf1 $18) (20... g5 $11 {keeps the balance.}) 21. Rc7 $16 {[%emt 0:01:13]} a6 {[%emt 0:02:45]} 22. R7c6 {[%emt 0:01:33]} (22. Rxf7 $16 Qxf7 23. Rc6) 22... Rb7 {[%emt 0:00:32]} (22... Bxf3 $2 23. Rf1 $18) (22... Qe7 $14) 23. Re1 {[%emt 0:00:43]} (23. h4 $16) 23... Bb5 $11 {[%emt 0:00:02]} 24. Rc2 {[%emt 0:00:49]} Kh7 {[%emt 0:00:01]} 25. Bf1 {[%emt 0:00:06]} Bxf1 {[%emt 0:00:26]} 26. Rxf1 {[%emt 0:00:03]} a5 {[%emt 0:00:02]} 27. Rc6 {[%emt 0:00:07]} h5 {[%emt 0:00:02]} 28. Qb3 {[%emt 0:00:26]} Bh6 {[%emt 0:00:15]} 29. Bxh6 {[%emt 0:00:03]} ({White should try} 29. Bxa5 $1 $14 h4 30. g4 $1 (30. Bxb6 Be3+ 31. Kh1 Rdb8 $17) (30. Rxb6 Rxb6 31. Qxb6 Rd7 $14)) 29... Kxh6 {[%emt 0:00:00]} 30. Rxb6 $2 {[%emt 0:00:58] [#]} (30. f4 $11) 30... Rxb6 {[%emt 0:00:03]} (30... a4 $1 $19 {[%cal Ra4b3]} 31. Qb5 Rxb6 32. Qxb6 Qg5) 31. Qxb6 {[%emt 0:00:01]} Qg5 {[%emt 0:00:20]} 32. g4 {[%emt 0:00:08] [#]} (32. Kg2 $1 $11 {and White stays safe.} Rc8 33. Qb3 (33. Qxa5 h4 $17)) 32... Qf4 $4 {[%emt 0:01:10][%mdl 8192]} 33. Qxd8 $18 {[%emt 0:01:07]} Qg3+ {[%emt 0:00:09][%mdl 32768] Weighted Error Value: White=0.40/Black=0.37. An unexpected result.} 1/2-1/2

[Event "European Corporate Championship 2022"]
[Site "Rotterdam"]
[Date "2022.06.19"]
[Round "7.10"]
[White "De Vreugt, Dennis"]
[Black "Schouten, Jordy"]
[Result "1-0"]
[ECO "B51"]
[WhiteElo "2393"]
[BlackElo "2121"]
[Annotator "TA"]
[PlyCount "81"]
[EventDate "2022.06.18"]
[EventType "team-tourn"]
[EventCountry "NED"]
[SourceTitle "playchess.com"]
[Source "ChessBase"]
[SourceQuality "1"]
[TimeControl "900+5"]

{[%evp 11,81,9,12,16,45,13,58,43,48,39,40,41,40,35,47,47,46,33,34,29,59,42,34,37,60,56,52,47,79,86,87,83,100,71,127,103,239,253,248,247,236,240,240,238,236,168,154,159,211,210,210,117,90,53,89,57,164,165,256,258,739,297,450,467,465,452,421,421,3265,3079,2671,1761]} 1. e4 {[%emt 0:00:02]} c5 {[%emt 0:00:01]} 2. Nf3 {[%emt 0:00:03]} d6 {[%emt 0:00:01]} 3. Bb5+ {[%emt 0:00:03]} Nc6 {[%emt 0:00:02]} 4. d4 {[%emt 0:00:41]} cxd4 {[%emt 0:00:15]} 5. Nxd4 {[%emt 0:00:14]} Bd7 {[%emt 0:00:07]} 6. O-O {[%emt 0:00:12]} Nf6 {[%emt 0:00:17]} 7. Re1 {[%emt 0:00:11] B51: Sicilian: Moscow Variation (3 Bb5+) without 3...Bd7.} e5 {[%emt 0:00:18]} 8. Nxc6 {[%emt 0:00:55]} Bxc6 {[%emt 0:00:39] [#]} 9. c4 $146 {[%emt 0:00:46] White is slightly better.} ({Predecessor:} 9. Bxc6+ bxc6 10. c4 Be7 11. Bg5 O-O 12. Nc3 Re8 13. Bxf6 Bxf6 14. Qd3 Qd7 15. Red1 {1-0 (62) Baker,J-Ramirez,L Dallas 1998}) 9... Be7 {[%emt 0:00:12]} 10. Bg5 {[%emt 0:01:49]} O-O {[%emt 0:00:10]} 11. Bxf6 {[%emt 0:00:02]} Bxf6 {[%emt 0:00:01]} 12. Nc3 {[%emt 0:00:01]} a6 {[%emt 0:01:07]} 13. Bxc6 {[%emt 0:00:11]} bxc6 {[%emt 0:13:00]} 14. b4 {[%emt 0:00:58]} Rb8 {[%emt 0:00:00]} 15. Rb1 {[%emt 0:00:10]} Bg5 {[%emt 0:00:00]} 16. Qe2 {[%emt 0:01:51]} Qc7 {[%emt 0:00:00]} 17. Red1 {[%emt 0:00:10]} Rfd8 {[%emt 0:00:00]} 18. Rb3 {[%emt 0:01:12]} g6 {[%emt 0:00:00]} 19. g3 {[%emt 0:00:32]} Bh6 {[%emt 0:00:00]} 20. a4 {[%emt 0:00:02][%cal Ba2a4,Ba4b5][%mdl 32]} Bf8 {[%emt 0:00:00]} 21. b5 {[%emt 0:00:34]} axb5 {[%emt 0:00:00]} 22. cxb5 {[%emt 0:00:28]} Qa5 {[%emt 0:00:00]} (22... d5 $142) 23. Qc4 {[%emt 0:00:07]} cxb5 {[%emt 0:00:00]} (23... Rdc8 $16) 24. Rxb5 $18 {[%emt 0:01:00]} (24. Nxb5 Rdc8 25. Qe2 (25. Qb4 Qxb4 26. Rxb4 d5 $17) 25... Qxa4 $15) 24... Rxb5 {[%emt 0:00:00]} 25. axb5 {[%emt 0:00:13]} (25. Nxb5 Ra8 $14) 25... Rb8 {[%emt 0:00:00]} 26. Rb1 {[%emt 0:01:06][%cal Bd1b1,Bb1b3,Bb3f3][%mdl 32]} Be7 {[%emt 0:00:00]} 27. Nd5 {[%emt 0:01:07]} Bd8 {[%emt 0:00:00]} 28. Rb3 {[%emt 0:00:01] aiming for Kg2.} Kg7 {[%emt 0:00:00]} 29. Kg2 {[%emt 0:00:08] Threatens to win with Qc6.} Bb6 {[%emt 0:00:00]} (29... Qa2 $16 {might work better.} 30. Qb4 Bb6) 30. Rf3 {[%emt 0:01:18]} Bc5 {[%emt 0:00:15] [#]} 31. Ne7 {[%emt 0:00:09]} (31. Nf6 $1 $18 {[%cal Rf6h5] Intending Nh5+! and mate.} Qd8 {[#]} 32. Nxh7 $1 (32. Ng4 Qd7 $16)) 31... Rf8 $16 {[%emt 0:00:02]} (31... f5 $2 32. exf5 Rf8 33. f6+ Kh8 34. Qh4 $18) 32. Nc6 {[%emt 0:00:07]} Qb6 {[%emt 0:00:13]} 33. h4 $36 {[%emt 0:00:15][%cal Bh2h4,Bh4h5][%mdl 2080] White has good play. 0x0.001763577da9dp-1022s more active pieces.} Qb7 {[%emt 0:00:27]} ({Better is} 33... h5 $1 $14) 34. h5 {[%emt 0:00:18]} Qd7 {[%emt 0:00:03]} (34... gxh5 {is a better defense.} 35. Nxe5 (35. Rf5 h4 $14) 35... dxe5) 35. Nxe5 $18 {[%emt 0:00:13]} Qe7 $2 {[%emt 0:00:25]} (35... dxe5 36. Qxc5 Re8) 36. Nd3 {[%emt 0:00:24]} (36. h6+ $142 Kg8 37. Ng4) 36... Bb6 {[%emt 0:00:07]} (36... f6 $142 37. Nf4 Re8) 37. Qc3+ {[%emt 0:00:04] White is clearly winning.} f6 {[%emt 0:00:08]} 38. Qc6 {[%emt 0:00:07]} Bd4 {[%emt 0:00:08]} 39. Nf4 {[%emt 0:00:03]} Qe5 {[%emt 0:00:08]} (39... Re8 $142 40. b6 Qxe4 41. Qxe4 (41. Qxd6 g5 $16) 41... Rxe4) 40. Qd7+ {[%emt 0:00:10]} Rf7 {[%emt 0:00:01]} 41. Ne6+ {[%emt 0:00:05] Weighted Error Value: White=0.24 (precise) /Black=0.29 (precise)} 1-0

[Event "European Corporate Championship 2022"]
[Site "Rotterdam"]
[Date "2022.06.19"]
[Round "7.11"]
[White "IJzermans, Cees"]
[Black "Jonkman, Harmen"]
[Result "0-1"]
[ECO "A06"]
[WhiteElo "2115"]
[BlackElo "2384"]
[Annotator "TA"]
[PlyCount "80"]
[EventDate "2022.06.18"]
[EventType "team-tourn"]
[EventCountry "NED"]
[SourceTitle "playchess.com"]
[Source "ChessBase"]
[SourceQuality "1"]
[TimeControl "900+5"]

{[%evp 9,80,0,0,0,10,3,20,13,10,-4,4,0,0,-25,-18,-13,3,10,0,4,18,8,9,0,29,0,22,-12,0,-35,-23,-20,-12,-35,-24,-31,-35,-83,-81,-97,-81,-88,-83,-149,-143,-156,0,-72,0,0,0,-63,-63,-53,-2,-9,1655,0,0,0,0,0,0,0,0,0,0,0,0,0,0,-27,-12]} 1. Nf3 {[%emt 0:00:03]} d5 {[%emt 0:00:02]} 2. b3 {[%emt 0:00:05]} Bg4 {[%emt 0:00:23]} 3. Bb2 {[%emt 0:00:18]} Nd7 {[%emt 0:00:03]} 4. d4 {[%emt 0:00:14]} e6 {[%emt 0:00:12]} 5. Nbd2 {[%emt 0:00:04]} Ngf6 {[%emt 0:00:10]} 6. e3 {[%emt 0:00:03] A06: Réti Opening: 1 Nf3 d5.} Bd6 {[%emt 0:00:59]} 7. h3 {[%emt 0:00:08]} Bh5 {[%emt 0:00:03]} 8. Be2 {[%emt 0:00:25] The position is equal.} O-O {[%emt 0:00:08] [#]} 9. a3 $146 {[%emt 0:00:06]} ({Predecessor:} 9. O-O c6 10. c4 Qe7 11. Ne5 Bxe2 12. Qxe2 Rad8 13. Rad1 Bb4 14. Nxd7 Rxd7 15. Qd3 h6 16. Bc3 Bxc3 17. Qxc3 c5 18. Nf3 Rc8 19. cxd5 Nxd5 {½-½ (30) Drazic,S (2421)-Jovanic,O (2520) Nova Gorica 2014}) 9... c5 {[%emt 0:00:12]} 10. O-O {[%emt 0:00:05]} cxd4 {[%emt 0:00:12]} 11. exd4 {[%emt 0:00:07]} Rc8 {[%emt 0:00:09]} 12. c4 {[%emt 0:00:06]} b6 {[%emt 0:00:59]} (12... Ne4 {feels hotter.} 13. c5 Bf4 14. b4 f5) 13. Ne5 {[%emt 0:00:08]} Bxe2 {[%emt 0:00:07]} 14. Qxe2 {[%emt 0:00:03]} Qc7 {[%emt 0:00:37]} 15. Rac1 {[%emt 0:00:45][%cal Oe5f7] Threatens to win with Nxf7!} Qb7 {[%emt 0:00:03]} 16. f4 {[%emt 0:00:19]} g6 {[%emt 0:00:21]} 17. Qf3 {[%emt 0:00:22]} Rc7 {[%emt 0:00:57]} 18. Nxd7 {[%emt 0:02:30]} Nxd7 {[%emt 0:00:38]} 19. cxd5 {[%emt 0:00:28] Black must now prevent Nc4.} (19. g4 $5 {[%cal Rf4f5]}) 19... Qxd5 {[%emt 0:00:08]} 20. Ne4 {[%emt 0:00:04]} Rfc8 {[%emt 0:00:36]} 21. Rxc7 {[%emt 0:02:18]} Rxc7 {[%emt 0:00:02]} 22. Nxd6 {[%emt 0:00:02]} Qxd6 {[%emt 0:00:04]} 23. Qa8+ {[%emt 0:00:10]} (23. d5 $15) 23... Qf8 $17 {[%emt 0:00:11]} 24. Qe4 {[%emt 0:00:17] [#]} Nf6 $1 {[%emt 0:01:34] Against d5} 25. Qe5 {[%emt 0:01:14]} Nd5 {[%emt 0:00:01]} 26. f5 {[%emt 0:01:05]} (26. Rf2 $142) 26... gxf5 {[%emt 0:00:08]} 27. Rf3 {[%emt 0:00:02] Rg3+ would kill now.} f4 {[%emt 0:00:07] Inhibits Rg3+.} ({Black should play} 27... h5 $17 {aiming for ...Qh6.} 28. Rg3+ Kh7) 28. Qg5+ {[%emt 0:00:16]} (28. Rxf4 $11 Nxf4 29. Qxc7) 28... Qg7 {[%emt 0:00:07]} (28... Kh8 $5 {[%cal Rf7f6]} 29. Rxf4 f6 $15) 29. Qd8+ {[%emt 0:00:02]} Qf8 {[%emt 0:00:01]} 30. Qg5+ {[%emt 0:00:01]} Kh8 {[%emt 0:01:41]} 31. Rxf4 {[%emt 0:00:18]} Rc2 {[%emt 0:00:35]} (31... f6 $15 32. Rf2 Qf7) 32. Rf2 $11 {[%emt 0:00:50]} Qc8 {[%emt 0:00:26][%mdl 8192] [#]} (32... f6 $11 33. Qg4 Rc6) 33. Qe5+ $2 $40 {[%emt 0:01:15][%mdl 128] White attacks.} ({White has to play} 33. Rxf7 $1 $18 {[%csl Gf7][%cal Rg5g7]} Rxg2+ 34. Qxg2) 33... f6 {[%emt 0:01:41]} 34. Rxf6 {[%emt 0:02:16]} Nxf6 {[%emt 0:00:20]} 35. Qxf6+ {[%emt 0:00:03][%mdl 4096] Endgame KQR-KQB} Kg8 {[%emt 0:00:00]} 36. d5 {[%emt 0:00:05][%csl Gb2][%cal Rf6g7]} Rxb2 $1 {[%emt 0:00:09]} 37. Qxb2 {[%emt 0:00:07]} Qc5+ {[%emt 0:00:08]} 38. Kh2 {[%emt 0:00:06]} exd5 {[%emt 0:00:14]} 39. Qf6 {[%emt 0:00:35]} d4 {[%emt 0:00:56]} 40. h4 {[%emt 0:00:35]} Qd5 {[%emt 0:00:37][%mdl 32768] What a bad dream for Black.  Weighted Error Value: White=0.32/Black=0.15 (very precise) . Loss on time!?} 0-1

[Event "European Corporate Championship 2022"]
[Site "Rotterdam"]
[Date "2022.06.19"]
[Round "7.12"]
[White "Duivenvoorde, Cees"]
[Black "Van den Broek, Rene"]
[Result "0-1"]
[ECO "B00"]
[WhiteElo "2020"]
[BlackElo "1980"]
[Annotator "NA RC"]
[PlyCount "44"]
[EventDate "2022.06.18"]
[EventType "team-tourn"]
[EventCountry "NED"]
[SourceTitle "playchess.com"]
[Source "ChessBase"]
[SourceQuality "1"]
[TimeControl "900+5"]

1. e4 {[%emt 0:00:02]} Nc6 {[%emt 0:00:01]} 2. c3 {[%emt 0:00:03]} Nf6 {[%emt 0:00:12]} 3. d3 {[%emt 0:00:10]} e5 {[%emt 0:00:09]} 4. f4 {[%emt 0:00:16]} d5 {[%emt 0:01:57]} 5. fxe5 {[%emt 0:00:48]} Nxe5 {[%emt 0:00:21]} 6. exd5 {[%emt 0:00:19]} Qxd5 {[%emt 0:00:10]} 7. h3 {[%emt 0:01:05]} Bf5 {[%emt 0:01:21]} 8. c4 {[%emt 0:01:17]} Nxd3+ {[%emt 0:00:20]} 9. Bxd3 {[%emt 0:00:16]} Qxd3 {[%emt 0:00:00]} 10. Qxd3 {[%emt 0:00:31]} Bxd3 {[%emt 0:00:02]} 11. b3 {[%emt 0:00:15]} O-O-O {[%emt 0:00:13]} 12. a3 {[%emt 0:00:36]} Bd6 {[%emt 0:00:19]} 13. Nf3 {[%emt 0:00:10]} Bg3+ {[%emt 0:00:04]} 14. Kd1 {[%emt 0:00:19]} Bxb1+ {[%emt 0:00:07]} 15. Bd2 {[%emt 0:00:20]} Be4 {[%emt 0:00:04]} 16. Kc1 {[%emt 0:00:45]} Rd3 {[%emt 0:00:24]} 17. Kb2 {[%emt 0:00:33]} Bxf3 {[%emt 0:00:03]} 18. gxf3 {[%emt 0:00:27]} Rxd2+ {[%emt 0:00:01]} 19. Kc3 {[%emt 0:08:28]} Rhd8 {[%emt 0:00:03]} 20. Rhg1 {[%emt 0:00:00]} a5 {[%emt 0:00:15]} 21. c5 {[%emt 0:00:00]} Be5+ {[%emt 0:00:24]} 22. Kc4 {[%emt 0:00:00]} Bxa1 {[%emt 0:00:09]} 0-1